bitfinex/quotes_BTCUSD_20250123
["timestamp","ask_amount","ask_price","bid_price","bid_amount"]
[1737651171175,0.285476,105090.0,105070.0,0.38307279]
[1737651171386,0.310476,105090.0,105070.0,0.38307279]
[1737651171587,0.096162,105090.0,105070.0,0.38307279]
[1737651172000,0.001,105090.0,105080.0,0.19251229]
[1737651172202,0.001,105090.0,105080.0,0.36751229]
[1737651172633,0.001,105090.0,105080.0,0.34251229]
[1737651172840,0.115156,105090.0,105080.0,0.00436014]
[1737651173087,0.02514952,105100.0,105080.0,0.19468914]
[1737651173292,0.00014952,105100.0,105090.0,0.19250329]
[1737651173693,0.00014952,105100.0,105090.0,0.37199597]
[1737651174656,0.00014952,105100.0,105090.0,0.36750329]
[1737651174866,0.00014952,105100.0,105090.0,0.095156]
[1737651175264,0.00014952,105100.0,105080.0,0.380634]
[1737651175490,0.00014952,105100.0,105090.0,0.095156]
[1737651176110,0.00014952,105100.0,105090.0,0.19250329]
[1737651176310,0.00014952,105100.0,105090.0,0.34350329]
[1737651176493,0.00014952,105100.0,105090.0,0.39150329]
[1737651176688,0.00014952,105100.0,105090.0,0.39050329]
[1737651176888,0.00014952,105100.0,105090.0,0.36550329]
[1737651177126,0.25030052,105130.0,105110.0,0.025]
[1737651177352,0.25030052,105130.0,105120.0,0.41957629]
[1737651177567,0.25030052,105130.0,105120.0,0.49117629]
[1737651177780,0.27533057,105130.0,105120.0,0.095129]
[1737651177992,0.27030052,105130.0,105110.0,0.00049929]
[1737651178194,0.25030052,105130.0,105120.0,0.19247629]
[1737651178399,0.25030052,105130.0,105120.0,0.36747629]
[1737651179185,0.25030052,105130.0,105120.0,0.34247629]
[1737651179543,0.25030052,105130.0,105120.0,0.34547629]
[1737651179744,0.39042052,105130.0,105120.0,0.003]
[1737651179950,0.27030052,105130.0,105120.0,0.095129]
[1737651180145,0.58066952,105130.0,105120.0,0.095129]
[1737651180399,0.55566952,105130.0,105120.0,0.003]
[1737651180646,0.34542552,105130.0,105120.0,0.098129]
[1737651180847,0.25030052,105130.0,105120.0,0.095129]
[1737651181001,0.25030052,105130.0,105120.0,0.19247629]
[1737651181184,0.25030052,105130.0,105120.0,0.19547629]
[1737651181632,0.36542052,105130.0,105120.0,0.003]
[1737651181811,0.34542052,105130.0,105120.0,0.003]
[1737651182192,0.27530052,105130.0,105120.0,0.098129]
[1737651182400,0.37042052,105130.0,105120.0,0.098129]
[1737651182602,0.27530052,105130.0,105120.0,0.098129]
[1737651182803,0.37042052,105130.0,105120.0,0.098129]
[1737651183049,0.27530052,105130.0,105120.0,0.098129]
[1737651183191,0.25030052,105130.0,105120.0,0.098129]
[1737651184000,0.25030052,105130.0,105120.0,0.19547629]
[1737651185933,0.25030052,105130.0,105120.0,0.37047629]
[1737651186094,0.29530052,105130.0,105120.0,0.003]
[1737651186274,0.25030052,105130.0,105120.0,0.095129]
[1737651186701,0.25030052,105130.0,105120.0,0.098129]
[1737651187084,0.25030052,105130.0,105120.0,0.095129]
[1737651187479,0.25030052,105130.0,105120.0,0.098129]
[1737651188159,1.01658871,105100.0,105090.0,0.51103688]
[1737651188368,1.01708886,105100.0,105090.0,0.60742037]
[1737651189176,1.01708886,105100.0,105090.0,0.60756347]
[1737651189411,1.01708886,105100.0,105090.0,0.60956347]
[1737651189601,1.01708886,105100.0,105090.0,0.63893611]
[1737651189807,1.01708886,105100.0,105090.0,0.60956347]
[1737651189989,1.01708886,105100.0,105090.0,0.58656347]
[1737651190390,1.01708886,105100.0,105090.0,0.60956347]
[1737651190541,1.01708886,105100.0,105090.0,0.63896515]
[1737651190752,1.01708886,105100.0,105090.0,0.60956347]
[1737651191290,1.01708886,105100.0,105090.0,0.58456347]
[1737651191529,1.01708886,105100.0,105090.0,0.56156347]
[1737651191714,1.01708886,105100.0,105090.0,0.58656347]
[1737651191910,1.01708886,105100.0,105090.0,0.60956347]
[1737651192342,1.01708886,105100.0,105090.0,0.63899681]
[1737651193649,1.01708886,105100.0,105090.0,0.59099681]
[1737651194029,1.01708886,105100.0,105090.0,0.61599681]
[1737651194208,1.01708886,105100.0,105090.0,0.59099681]
[1737651194424,1.01708886,105100.0,105090.0,0.61599681]
[1737651194978,1.01708886,105100.0,105090.0,0.46399681]
[1737651195373,1.01708886,105100.0,105090.0,0.46199681]
[1737651195686,1.01708886,105100.0,105090.0,0.46399681]
[1737651195891,1.01708886,105100.0,105090.0,0.59099681]
[1737651196503,1.13223586,105100.0,105090.0,0.00943101]
[1737651196710,1.26790243,105100.0,105090.0,0.0021431]
[1737651197260,1.11223586,105100.0,105090.0,0.0021431]
[1737651197676,1.11223586,105100.0,105090.0,0.0001431]
[1737651198810,1.13223586,105100.0,105090.0,0.0001431]
[1737651199013,1.13223586,105100.0,105090.0,0.0011431]
[1737651199014,1.11223586,105100.0,105090.0,0.0011431]
[1737651199568,1.13223586,105100.0,105090.0,0.0001431]
[1737651199788,1.15723586,105100.0,105090.0,0.0001431]
[1737651200140,1.13723586,105100.0,105090.0,0.0001431]
[1737651200771,1.11223586,105100.0,105090.0,0.0011431]
[1737651201189,1.13723586,105100.0,105090.0,0.0011431]
[1737651201381,1.36524972,105100.0,105090.0,0.0011431]
[1737651202232,1.36524972,105100.0,105090.0,0.0001431]
[1737651203546,1.11223586,105100.0,105090.0,0.0001431]
[1737651203662,1.13223586,105100.0,105090.0,0.0001431]
[1737651203867,1.01708886,105100.0,105090.0,0.34264639]
[1737651204107,1.01708886,105100.0,105090.0,0.37216556]
[1737651204262,1.13223586,105100.0,105090.0,0.02966227]
[1737651204493,1.15723586,105100.0,105090.0,0.00438777]
[1737651204812,1.13223586,105100.0,105090.0,0.00438777]
[1737651205055,1.13723586,105100.0,105090.0,0.00438777]
[1737651205387,1.15723586,105100.0,105090.0,0.00438777]
[1737651205767,1.15723586,105100.0,105090.0,0.00538777]
[1737651205969,1.15723586,105100.0,105090.0,0.00239877]
[1737651206145,1.15723586,105100.0,105090.0,0.001]
[1737651207163,1.26868256,105100.0,105090.0,0.001]
[1737651207389,1.44682985,105100.0,105090.0,0.001]
[1737651207872,1.34948256,105100.0,105090.0,0.001]
[1737651208336,0.095156,105090.0,105080.0,0.0001431]
[1737651208542,0.34894999,105090.0,105080.0,0.0001431]
[1737651209012,0.115156,105090.0,105080.0,0.0001431]
[1737651209354,0.120156,105090.0,105080.0,0.0001431]
[1737651209578,0.140156,105090.0,105080.0,0.0001431]
[1737651209776,0.120156,105090.0,105080.0,0.0001431]
[1737651209979,0.2766027,105090.0,105080.0,0.0001431]
[1737651210248,0.2766027,105090.0,105080.0,0.0011431]
[1737651211480,0.120156,105090.0,105080.0,0.0011431]
[1737651211730,0.115156,105090.0,105080.0,0.0011431]
[1737651212134,0.140156,105090.0,105080.0,0.0011431]
[1737651213298,0.025,105090.0,105080.0,0.0011431]
[1737651213495,1.01708886,105100.0,105090.0,0.095156]
[1737651213778,1.01708886,105100.0,105090.0,0.19250329]
[1737651213894,1.11223586,105100.0,105090.0,0.19250329]
[1737651214101,0.115156,105090.0,105080.0,0.0011431]
[1737651214343,0.02,105090.0,105080.0,0.2866331]
[1737651214556,0.115156,105090.0,105080.0,0.0011431]
[1737651214755,0.115156,105090.0,105080.0,0.0963081]
[1737651215213,1.03738811,105100.0,105090.0,0.245156]
[1737651215587,1.13253511,105100.0,105090.0,0.245156]
[1737651215742,1.03738811,105100.0,105090.0,0.245156]
[1737651215941,1.13253511,105100.0,105090.0,0.245156]
[1737651216140,1.03738811,105100.0,105090.0,0.245156]
[1737651216792,1.03738811,105100.0,105080.0,0.0011431]
[1737651217131,0.115156,105090.0,105080.0,0.0963081]
[1737651217340,0.115156,105090.0,105080.0,0.0011431]
[1737651217544,0.2516027,105090.0,105080.0,0.0001431]
[1737651217749,0.095156,105090.0,105080.0,0.0001431]
[1737651217956,0.120156,105090.0,105080.0,0.0001431]
[1737651218128,0.140156,105090.0,105080.0,0.0001431]
[1737651218341,1.01738811,105100.0,105090.0,0.095156]
[1737651218583,1.01738811,105100.0,105090.0,0.36550329]
[1737651218785,1.01738811,105100.0,105090.0,0.39050329]
[1737651219202,0.00030052,105130.0,105120.0,0.270129]
[1737651219410,0.115089,105170.0,105150.0,0.190194]
[1737651219582,0.316155,105180.0,105160.0,0.285264]
[1737651219583,0.385937,105180.0,105160.0,0.285264]
[1737651219842,0.1007,105180.0,105170.0,0.095084]
[1737651220018,0.0807,105180.0,105170.0,0.095084]
[1737651220481,0.285211,105190.0,105170.0,0.285242]
[1737651220681,0.38025,105200.0,105180.0,0.095075]
[1737651220892,0.38025,105200.0,105180.0,0.190147]
[1737651220893,0.02,105190.0,105180.0,0.190147]
[1737651221091,0.095061,105200.0,105180.0,0.475354]
[1737651221265,0.02,105200.0,105190.0,0.095066]
[1737651221673,0.36154668,105210.0,105190.0,0.285194]
[1737651221805,0.02,105200.0,105190.0,0.285194]
[1737651222009,0.00029968,105210.0,105200.0,0.095057]
[1737651222420,0.00029968,105210.0,105200.0,0.21540429]
[1737651222647,0.00029968,105210.0,105200.0,0.36540429]
[1737651222844,0.00029968,105210.0,105200.0,0.39040429]
[1737651223049,0.02029968,105240.0,105200.0,0.39040429]
[1737651223050,0.00029968,105240.0,105210.0,0.0695]
[1737651223262,0.00029968,105240.0,105230.0,0.268029]
[1737651223465,0.00029968,105240.0,105230.0,0.36537629]
[1737651223766,0.00029968,105240.0,105230.0,0.39037629]
[1737651223971,1e-08,105240.0,105230.0,0.39037629]
[1737651224175,1e-08,105240.0,105230.0,0.36537629]
[1737651224588,0.00050109,105240.0,105230.0,0.36537629]
[1737651224793,0.08456896,105240.0,105230.0,0.36537629]
[1737651225600,0.08556896,105240.0,105230.0,0.37637629]
[1737651225834,0.0990001,105310.0,105290.0,0.284917]
[1737651226032,0.139969,105300.0,105280.0,0.284935]
[1737651226261,0.139969,105300.0,105280.0,0.31030429]
[1737651226462,0.02,105300.0,105280.0,0.189954]
[1737651226638,0.02,105280.0,105260.0,0.339993]
[1737651226866,0.234971,105280.0,105260.0,0.28733729]
[1737651227079,0.404916,105290.0,105270.0,0.094993]
[1737651227252,0.499897,105290.0,105270.0,0.094993]
[1737651227480,0.114984,105280.0,105270.0,0.094993]
[1737651227686,0.02,105270.0,105260.0,0.284986]
[1737651227893,0.045,105270.0,105250.0,0.380038]
[1737651228096,0.02,105270.0,105260.0,0.284988]
[1737651228309,0.139993,105270.0,105260.0,0.001]
[1737651228514,0.02,105270.0,105260.0,0.096002]
[1737651228715,0.02,105270.0,105260.0,0.095002]
[1737651228914,0.00015026,105270.0,105260.0,0.47033729]
[1737651229141,0.00015026,105270.0,105260.0,0.55633929]
[1737651229476,0.00015026,105270.0,105260.0,0.41433929]
[1737651230115,0.00015026,105270.0,105260.0,0.009]
[1737651230116,0.11514326,105270.0,105260.0,0.009]
[1737651230287,0.11514326,105270.0,105260.0,0.008]
[1737651230288,0.32943459,105270.0,105260.0,0.008]
[1737651230487,0.32943459,105270.0,105260.0,0.009]
[1737651230696,0.44678188,105270.0,105260.0,0.009]
[1737651230956,0.49678188,105270.0,105260.0,0.009]
[1737651231105,0.330094,105230.0,105210.0,1.099731]
[1737651231332,0.140033,105230.0,105210.0,0.47751829]
[1737651231512,0.045,105240.0,105220.0,0.28741429]
[1737651231866,0.02,105260.0,105250.0,0.095011]
[1737651232099,0.02,105250.0,105240.0,0.285042]
[1737651232304,0.02,105250.0,105240.0,0.38238929]
[1737651232713,0.045,105250.0,105240.0,0.38238929]
[1737651233248,0.14015624,105260.0,105240.0,0.38238929]
[1737651233505,0.02,105250.0,105240.0,0.09502]
[1737651233896,0.045,105250.0,105240.0,0.09502]
[1737651234081,0.140011,105250.0,105240.0,0.09502]
[1737651234287,0.140011,105250.0,105230.0,0.39918207]
[1737651234485,0.140011,105250.0,105210.0,0.190084]
[1737651234486,0.02,105230.0,105210.0,0.190084]
[1737651234725,0.025,105240.0,105230.0,0.095029]
[1737651234856,0.46614333,105250.0,105240.0,0.09502]
[1737651235080,0.02,105240.0,105230.0,0.38241429]
[1737651235450,0.021,105250.0,105240.0,0.09502]
[1737651235725,0.04515024,105260.0,105250.0,0.095011]
[1737651235899,0.02515024,105260.0,105250.0,0.095011]
[1737651236099,0.04515024,105260.0,105250.0,0.095011]
[1737651236450,0.00015024,105260.0,105250.0,0.19235829]
[1737651237048,0.02015024,105260.0,105250.0,0.19235829]
[1737651237278,0.04515024,105260.0,105250.0,0.19235829]
[1737651237488,0.02015024,105260.0,105250.0,0.19235829]
[1737651238827,0.02015024,105260.0,105250.0,0.20235829]
[1737651239133,0.14015224,105260.0,105250.0,0.105011]
[1737651239335,0.27624357,105260.0,105250.0,0.01]
[1737651239918,0.12015224,105260.0,105250.0,0.01]
[1737651240057,0.27624357,105260.0,105250.0,0.01]
[1737651240458,0.47749086,105260.0,105250.0,0.01]
[1737651240665,0.70358219,105260.0,105250.0,0.01]
[1737651240873,0.115011,105250.0,105240.0,0.0001423]
[1737651241082,0.41844962,105250.0,105240.0,0.0001423]
[1737651241287,0.02,105250.0,105240.0,0.0001423]
[1737651241522,0.00015024,105260.0,105250.0,0.095011]
[1737651241736,0.00015024,105260.0,105250.0,0.19335829]
[1737651242147,0.00015024,105260.0,105250.0,0.19235829]
[1737651243790,0.00015024,105260.0,105250.0,0.19335829]
[1737651243992,0.00115024,105260.0,105250.0,0.20135829]
[1737651245165,0.14115224,105260.0,105250.0,0.009]
[1737651245415,0.00115024,105260.0,105250.0,0.20135829]
[1737651248209,0.12315224,105260.0,105250.0,0.009]
[1737651248456,0.45019086,105260.0,105250.0,0.009]
[1737651248943,0.43019086,105260.0,105250.0,0.009]
[1737651249169,0.22175224,105260.0,105250.0,0.009]
[1737651249406,0.20175224,105260.0,105250.0,0.009]
[1737651249645,0.12315224,105260.0,105250.0,0.104011]
[1737651249853,0.02344907,105260.0,105250.0,0.18941053]
[1737651250088,0.14345107,105260.0,105250.0,0.18941053]
[1737651250307,0.04844907,105260.0,105250.0,0.18941053]
[1737651250502,0.02344907,105260.0,105250.0,0.18941053]
[1737651250737,0.00344907,105260.0,105250.0,0.17752898]
[1737651252197,0.00344907,105260.0,105250.0,0.35252898]
[1737651252383,0.00344907,105260.0,105250.0,0.38187878]
[1737651252640,0.02,105290.0,105270.0,0.189981]
[1737651252878,0.00044876,105300.0,105290.0,0.094975]
[1737651253109,0.02044876,105300.0,105290.0,0.094975]
[1737651253336,0.00044876,105300.0,105290.0,0.22166465]
[1737651254248,0.00044876,105300.0,105290.0,0.22666465]
[1737651254249,0.04644876,105300.0,105290.0,0.22666465]
[1737651254414,0.04644876,105300.0,105290.0,0.22766465]
[1737651254732,0.02644876,105300.0,105290.0,0.13031736]
[1737651254987,0.00044876,105300.0,105290.0,0.22266465]
[1737651255413,0.00144876,105300.0,105290.0,0.22666465]
[1737651256019,0.00144876,105300.0,105290.0,0.37666465]
[1737651256533,0.0003001,105310.0,105300.0,0.15]
[1737651256750,0.34561995,105350.0,105330.0,0.189862]
[1737651256751,0.025,105350.0,105330.0,0.189862]
[1737651257031,0.11993,105340.0,105330.0,0.02934236]
[1737651257169,0.36805224,105340.0,105330.0,0.03555592]
[1737651257377,0.36805224,105340.0,105330.0,0.03349042]
[1737651257583,0.001,105300.0,105290.0,0.29191]
[1737651257808,0.001,105300.0,105290.0,0.32138043]
[1737651258009,0.27572795,105320.0,105300.0,0.094965]
[1737651258237,0.119949,105320.0,105300.0,0.41170672]
[1737651258441,0.025,105320.0,105300.0,0.41171572]
[1737651258679,0.119951,105320.0,105300.0,0.41171572]
[1737651259053,0.025,105320.0,105300.0,0.22178272]
[1737651259229,0.025,105320.0,105310.0,0.094957]
[1737651259571,0.025,105320.0,105310.0,0.12442743]
[1737651259776,0.284834,105330.0,105310.0,0.31433643]
[1737651259948,0.199037,105340.0,105320.0,0.189883]
[1737651260119,0.119939,105330.0,105320.0,0.02947043]
[1737651260313,0.119939,105330.0,105310.0,0.41167672]
[1737651260314,0.025,105320.0,105310.0,0.41167672]
[1737651260515,0.001,105320.0,105310.0,0.41164003]
[1737651260725,0.025,105320.0,105310.0,0.41264003]
[1737651261232,0.025,105320.0,105310.0,0.41164003]
[1737651261429,0.499713,105330.0,105310.0,0.41164003]
[1737651261634,0.499713,105330.0,105310.0,0.31529274]
[1737651261635,0.12024683,105320.0,105310.0,0.31529274]
[1737651261836,0.34836907,105320.0,105310.0,0.03043374]
[1737651262040,0.36836907,105320.0,105310.0,0.001]
[1737651262224,0.36836907,105320.0,105310.0,0.008]
[1737651262225,0.34836907,105320.0,105310.0,0.008]
[1737651262424,0.09524683,105320.0,105310.0,0.008]
[1737651262655,0.12024683,105320.0,105310.0,0.13238299]
[1737651262860,0.09524683,105320.0,105310.0,0.03742599]
[1737651263075,0.09524683,105320.0,105310.0,0.008]
[1737651263296,0.09524683,105320.0,105310.0,0.007]
[1737651263505,0.309882,105310.0,105290.0,0.63298307]
[1737651263714,0.309882,105310.0,105290.0,0.75975091]
[1737651264174,0.094966,105300.0,105290.0,0.02941955]
[1737651264403,0.094966,105300.0,105270.0,0.00810943]
[1737651264404,0.094984,105280.0,105270.0,0.00810943]
[1737651264615,0.554257,105300.0,105280.0,0.094981]
[1737651264817,0.094976,105290.0,105280.0,0.284951]
[1737651265245,0.094976,105290.0,105280.0,0.094984]
[1737651265441,0.364312,105300.0,105290.0,0.094975]
[1737651265818,0.364299,105300.0,105280.0,0.47503793]
[1737651266025,0.364299,105300.0,105280.0,0.47740822]
[1737651266224,0.364299,105300.0,105280.0,0.57238522]
[1737651266355,0.364299,105300.0,105280.0,0.76234422]
[1737651266562,0.364299,105300.0,105280.0,0.38242922]
[1737651266786,0.365299,105300.0,105290.0,0.001]
[1737651267304,0.459277,105300.0,105280.0,0.28509993]
[1737651267513,0.745196,105300.0,105280.0,0.39044722]
[1737651267711,0.175373,105300.0,105290.0,0.094975]
[1737651267859,0.0804,105300.0,105290.0,0.094975]
[1737651268056,0.0804,105300.0,105290.0,0.19632229]
[1737651268273,0.17274683,105320.0,105310.0,0.094957]
[1737651268471,0.17274683,105320.0,105300.0,0.474801]
[1737651268472,0.36264683,105320.0,105300.0,0.474801]
[1737651268930,0.094957,105310.0,105300.0,0.094959]
[1737651269127,0.17577495,105310.0,105280.0,0.11046375]
[1737651269369,0.094975,105290.0,105280.0,0.10213393]
[1737651269543,0.474868,105300.0,105280.0,0.29209393]
[1737651269754,0.379898,105300.0,105280.0,0.29209393]
[1737651269960,0.094975,105290.0,105280.0,0.28509393]
[1737651270108,0.094975,105290.0,105280.0,0.00014993]
[1737651270382,0.094975,105290.0,105280.0,0.09513393]
[1737651270583,0.474869,105300.0,105280.0,0.09513393]
[1737651270787,0.28492,105300.0,105280.0,0.47606293]
[1737651271014,0.28492,105300.0,105280.0,0.48206293]
[1737651271246,0.28492,105300.0,105280.0,0.47505493]
[1737651271452,0.28492,105300.0,105290.0,0.094975]
[1737651271639,0.379841,105310.0,105290.0,0.094975]
[1737651271846,0.094965,105310.0,105300.0,0.094966]
[1737651272095,0.55256383,105320.0,105300.0,0.094963]
[1737651272327,0.094966,105300.0,105280.0,0.28609193]
[1737651272531,0.094975,105290.0,105280.0,0.38343922]
[1737651272741,0.094975,105290.0,105280.0,0.00014993]
[1737651273188,0.094975,105290.0,105280.0,0.00129213]
[1737651273410,0.094975,105290.0,105280.0,0.00629213]
[1737651273555,0.094975,105290.0,105280.0,0.00029213]
[1737651273760,0.094975,105290.0,105280.0,0.00129213]
[1737651273960,0.094975,105290.0,105280.0,0.00729213]
[1737651274177,0.189923,105310.0,105280.0,0.29459642]
[1737651274412,0.07779883,105320.0,105310.0,0.094957]
[1737651274642,0.17274683,105320.0,105300.0,0.379841]
[1737651274880,0.189929,105310.0,105290.0,0.284922]
[1737651275141,0.284913,105300.0,105290.0,0.02946717]
[1737651275335,0.474857,105300.0,105280.0,0.4716945]
[1737651275533,0.094966,105300.0,105290.0,0.094975]
[1737651275735,0.474817,105310.0,105290.0,0.31439232]
[1737651275945,0.094973,105300.0,105280.0,0.29222413]
[1737651276146,0.284915,105300.0,105280.0,0.60800378]
[1737651276346,0.284888,105310.0,105290.0,0.47722929]
[1737651276566,0.26770483,105320.0,105300.0,0.094962]
[1737651276773,0.45761583,105320.0,105300.0,0.284892]
[1737651277088,0.094957,105310.0,105300.0,0.284892]
[1737651277304,0.284875,105310.0,105300.0,0.094966]
[1737651277505,0.45761583,105320.0,105300.0,0.284893]
[1737651277995,0.189923,105310.0,105290.0,0.094971]
[1737651278243,0.44069515,105310.0,105300.0,0.002]
[1737651278486,0.28488,105310.0,105300.0,0.002]
[1737651278969,0.094957,105310.0,105300.0,0.002]
[1737651279185,0.58804544,105310.0,105300.0,0.002]
[1737651279812,0.114966,105300.0,105290.0,0.001]
[1737651280018,0.094966,105300.0,105290.0,0.007]
[1737651280221,0.094966,105300.0,105290.0,0.001]
[1737651280864,0.284907,105300.0,105280.0,0.28523113]
[1737651281089,0.474853,105300.0,105280.0,0.38257842]
[1737651281288,0.094975,105290.0,105280.0,0.38257842]
[1737651281741,0.382844,105310.0,105280.0,0.28759542]
[1737651281941,0.284904,105300.0,105290.0,0.09734729]
[1737651282528,0.284904,105300.0,105280.0,0.47518213]
[1737651282766,0.474847,105300.0,105280.0,0.57252942]
[1737651282985,0.284904,105300.0,105290.0,0.096975]
[1737651283214,0.094975,105290.0,105280.0,0.09763942]
[1737651283874,0.094975,105290.0,105280.0,0.00029213]
[1737651284073,0.094975,105290.0,105280.0,0.00629213]
[1737651284286,0.094975,105290.0,105280.0,0.00029213]
[1737651284713,0.094975,105290.0,105280.0,0.00629213]
[1737651285480,0.114975,105290.0,105280.0,0.00629213]
[1737651285718,0.34813744,105290.0,105280.0,0.00629213]
[1737651285925,0.85219988,105290.0,105280.0,0.00729213]
[1737651286338,0.73185259,105290.0,105280.0,0.00729213]
[1737651286543,0.59603744,105290.0,105280.0,0.00729213]
[1737651286741,0.44603744,105290.0,105280.0,0.00629213]
[1737651286984,0.42603744,105290.0,105280.0,0.00629213]
[1737651287231,0.47603744,105290.0,105280.0,0.00629213]
[1737651287648,0.62603744,105290.0,105280.0,0.00629213]
[1737651287782,0.47603744,105290.0,105280.0,0.00629213]
[1737651288008,0.48479315,105290.0,105280.0,0.00629213]
[1737651288881,0.44379315,105290.0,105280.0,0.00729213]
[1737651289212,0.49379315,105290.0,105280.0,0.00629213]
[1737651289410,0.48479315,105290.0,105280.0,0.00629213]
[1737651289641,0.49379315,105290.0,105280.0,0.00129213]
[1737651290096,0.44379315,105290.0,105280.0,0.00229213]
[1737651290339,0.36644586,105290.0,105280.0,0.00129213]
[1737651290550,0.36644586,105290.0,105280.0,0.00229213]
[1737651290551,0.35769015,105290.0,105280.0,0.00229213]
[1737651291706,0.43503744,105290.0,105280.0,0.00229213]
[1737651291910,0.42603744,105290.0,105280.0,0.00129213]
[1737651292127,0.42903744,105290.0,105280.0,0.00129213]
[1737651292611,0.175875,105290.0,105280.0,0.00129213]
[1737651293088,0.33169015,105290.0,105280.0,0.00029213]
[1737651293496,0.44903744,105290.0,105280.0,0.00029213]
[1737651293713,0.54638473,105290.0,105280.0,0.00029213]
[1737651293911,0.42903744,105290.0,105280.0,0.00029213]
[1737651294116,0.35169015,105290.0,105280.0,0.00029213]
[1737651294556,0.33169015,105290.0,105280.0,0.00029213]
[1737651295778,0.35169015,105290.0,105280.0,0.00029213]
[1737651295975,0.44903744,105290.0,105280.0,0.00029213]
[1737651296715,0.35169015,105290.0,105280.0,0.00029213]
[1737651296885,0.195875,105290.0,105280.0,0.00029213]
[1737651297263,0.35169015,105290.0,105280.0,0.00029213]
[1737651298382,0.42903744,105290.0,105280.0,0.00029213]
[1737651298588,0.195875,105290.0,105280.0,0.00029213]
[1737651298837,0.35169015,105290.0,105280.0,0.00029213]
[1737651299579,0.097975,105290.0,105280.0,0.00029213]
[1737651300459,0.003,105290.0,105280.0,0.19262342]
[1737651300859,0.003,105290.0,105280.0,0.34262342]
[1737651301066,0.003,105290.0,105280.0,0.39262342]
[1737651301281,0.00029862,105310.0,105300.0,0.244966]
[1737651301482,0.00029862,105310.0,105300.0,0.46099329]
[1737651301695,0.00029862,105310.0,105300.0,0.4905108]
[1737651303140,1e-08,105310.0,105300.0,0.4835108]
[1737651303341,0.08266437,105340.0,105310.0,0.1957]
[1737651303540,0.08266437,105340.0,105330.0,0.24228629]
[1737651303767,0.08266437,105340.0,105330.0,0.19228629]
[1737651304319,0.094939,105330.0,105320.0,0.284826]
[1737651304522,0.08266437,105340.0,105330.0,0.094939]
[1737651304725,0.08266437,105340.0,105330.0,0.19228629]
[1737651304926,0.08281427,105340.0,105330.0,0.19228629]
[1737651305061,0.08281427,105340.0,105330.0,0.19828629]
[1737651305263,0.08281427,105340.0,105330.0,0.19928629]
[1737651305666,0.08281427,105340.0,105330.0,0.24828629]
[1737651305865,0.0001499,105340.0,105330.0,0.39828629]
[1737651306067,0.0011499,105340.0,105330.0,0.39828629]
[1737651306269,0.0011499,105340.0,105330.0,0.54918629]
[1737651306443,0.0003001,105370.0,105360.0,0.094912]
[1737651306651,0.0003001,105370.0,105360.0,0.39225929]
[1737651306652,0.00079967,105370.0,105360.0,0.39225929]
[1737651307152,0.00079967,105370.0,105360.0,0.41225929]
[1737651307365,0.00079967,105370.0,105360.0,0.48265929]
[1737651307564,0.00029968,105380.0,105370.0,0.244903]
[1737651307757,0.00044946,105380.0,105370.0,0.36213029]
[1737651308014,0.00044946,105380.0,105370.0,0.34225029]
[1737651308532,0.00044946,105380.0,105370.0,0.34045029]
[1737651309513,0.00044946,105380.0,105370.0,0.34145029]
[1737651309830,0.00044946,105380.0,105370.0,0.34745029]
[1737651310048,0.09534346,105380.0,105370.0,0.12372442]
[1737651310250,0.00044946,105380.0,105370.0,0.007]
[1737651310477,0.00044946,105380.0,105370.0,0.19925029]
[1737651310887,0.00044946,105380.0,105370.0,0.34825029]
[1737651311087,0.00044946,105380.0,105370.0,0.48215029]
[1737651311294,0.00044946,105380.0,105370.0,0.46665029]
[1737651311502,0.00044946,105380.0,105370.0,0.39615029]
[1737651311730,0.00044946,105380.0,105370.0,0.39825029]
[1737651311917,0.00044946,105380.0,105370.0,0.39225029]
[1737651312133,0.00044946,105380.0,105370.0,0.39325029]
[1737651312625,0.00044946,105380.0,105370.0,0.39225029]
[1737651312829,0.00044946,105380.0,105370.0,0.41124442]
[1737651313166,0.00044946,105380.0,105370.0,0.36724442]
[1737651313373,0.00044946,105380.0,105370.0,0.36124442]
[1737651313743,0.00044946,105380.0,105370.0,0.36724442]
[1737651313982,0.09534346,105380.0,105370.0,0.10334729]
[1737651314185,0.35355861,105380.0,105370.0,0.006]
[1737651314522,0.33355861,105380.0,105370.0,0.006]
[1737651314733,0.284716,105370.0,105350.0,0.284759]
[1737651314903,0.284716,105370.0,105350.0,0.57193929]
[1737651315208,0.27263846,105380.0,105360.0,0.28716129]
[1737651315416,0.094903,105370.0,105360.0,0.09734729]
[1737651315643,0.55734346,105380.0,105360.0,0.38208129]
[1737651315935,0.189807,105370.0,105350.0,0.094916]
[1737651316144,0.474538,105370.0,105350.0,0.38210529]
[1737651316351,0.474536,105370.0,105350.0,0.38211029]
[1737651316550,0.379628,105370.0,105350.0,0.38211029]
[1737651316754,0.474539,105370.0,105350.0,0.38211029]
[1737651316953,0.284718,105370.0,105350.0,0.38211029]
[1737651317092,0.094911,105370.0,105360.0,0.094912]
[1737651317294,0.094903,105370.0,105360.0,0.38208029]
[1737651317496,0.094903,105370.0,105360.0,0.09734729]
[1737651317756,0.55734546,105380.0,105360.0,0.19225529]
[1737651317959,0.36754746,105380.0,105370.0,0.094903]
[1737651318106,0.55734746,105380.0,105360.0,0.38206229]
[1737651318302,0.08284946,105380.0,105370.0,0.09734729]
[1737651318546,0.08284946,105380.0,105370.0,0.19225029]
[1737651318547,0.17774346,105380.0,105370.0,0.19225029]
[1737651318724,0.094912,105360.0,105350.0,0.006]
[1737651319130,0.25072715,105360.0,105350.0,0.006]
[1737651319339,0.34565215,105360.0,105310.0,0.235112]
[1737651319541,0.284805,105340.0,105320.0,0.57207629]
[1737651319738,0.094939,105330.0,105320.0,0.09734729]
[1737651320173,0.61796115,105340.0,105320.0,0.09734729]
[1737651320350,0.367209,105340.0,105330.0,0.094939]
[1737651320605,0.177339,105340.0,105330.0,0.094939]
[1737651320788,0.177339,105340.0,105330.0,0.00049957]
[1737651321013,0.367203,105340.0,105330.0,0.00049957]
[1737651322257,0.0824,105340.0,105330.0,0.09543857]
[1737651322466,0.474628,105350.0,105330.0,0.38265186]
[1737651322668,0.284776,105350.0,105330.0,0.57451886]
[1737651322913,0.284776,105350.0,105340.0,0.09493]
[1737651323128,0.549992,105360.0,105340.0,0.38213029]
[1737651323330,0.549992,105360.0,105340.0,0.38212429]
[1737651323331,0.549989,105360.0,105340.0,0.38212429]
[1737651323530,0.094921,105350.0,105340.0,0.38212229]